[Event "*** Titled Tuesday Blitz"]
[Site "Chess.com"]
[Date "2019.12.03"]
[Round "2"]
[White "DangerousPlayer1st"]
[Black "Chesswizard_2007"]
[Result "1-0"]
[WhiteElo "2779"]
[BlackElo "2421"]
[TimeControl "180+2"]
[EndTime "13:21:31 PST"]
[Termination "DangerousPlayer1st won by checkmate"]

1. e4 {[%clk 0:03:01.9]} 1... e5 {[%clk 0:02:59.6]} 2. Nf3 {[%clk 0:03:00.5]}
2... Nc6 {[%clk 0:03:00.7]} 3. Bb5 {[%clk 0:03:00.5]} 3... a6 {[%clk 0:03:01.2]}
4. Ba4 {[%clk 0:03:01.3]} 4... Nf6 {[%clk 0:03:01.8]} 5. O-O {[%clk 0:03:02.8]}
5... Nxe4 {[%clk 0:02:55.3]} 6. d4 {[%clk 0:03:03.1]} 6... b5 {[%clk 0:02:55.6]}
7. Bb3 {[%clk 0:03:03.6]} 7... d5 {[%clk 0:02:56.8]} 8. dxe5 {[%clk 0:03:04.9]}
8... Be6 {[%clk 0:02:57.9]} 9. c3 {[%clk 0:03:05.4]} 9... Bc5 {[%clk 0:02:42.9]}
10. Qe2 {[%clk 0:03:05.5]} 10... O-O {[%clk 0:02:42.3]} 11. Be3 {[%clk
0:03:04.4]} 11... Bxe3 {[%clk 0:02:42]} 12. Qxe3 {[%clk 0:03:06.3]} 12... Qe7
{[%clk 0:02:40.7]} 13. Nbd2 {[%clk 0:03:06]} 13... Nxd2 {[%clk 0:02:40.4]} 14.
Qxd2 {[%clk 0:03:04.5]} 14... Rad8 {[%clk 0:02:40.4]} 15. Rfe1 {[%clk
0:03:04.2]} 15... Na5 {[%clk 0:02:38.7]} 16. Bc2 {[%clk 0:03:03]} 16... Nc4
{[%clk 0:02:38.9]} 17. Qf4 {[%clk 0:02:42.9]} 17... h6 {[%clk 0:02:05.8]} 18. b3
{[%clk 0:02:34.3]} 18... Nb6 {[%clk 0:02:02.1]} 19. Rad1 {[%clk 0:02:34.7]}
19... c5 {[%clk 0:02:02.5]} 20. g4 {[%clk 0:02:30.1]} 20... f6 {[%clk
0:01:38.8]} 21. Qg3 {[%clk 0:01:53.2]} 21... f5 {[%clk 0:01:13.6]} 22. g5 {[%clk
0:01:42.1]} 22... Kh7 {[%clk 0:00:45]} 23. Qf4 {[%clk 0:01:42.1]} 23... h5
{[%clk 0:00:42.7]} 24. g6+ {[%clk 0:01:30]} 24... Kxg6 {[%clk 0:00:42.5]} 25.
Kh1 {[%clk 0:01:31.9]} 25... Kh7 {[%clk 0:00:42.3]} 26. Rg1 {[%clk 0:01:32.4]}
26... d4 {[%clk 0:00:36.4]} 27. Rg5 {[%clk 0:01:06.2]} 27... g6 {[%clk 0:00:35]}
28. Rdg1 {[%clk 0:01:01.7]} 28... Rg8 {[%clk 0:00:24.3]} 29. Qh4 {[%clk
0:01:00.7]} 29... Qe8 {[%clk 0:00:19.3]} 30. cxd4 {[%clk 0:00:55.9]} 30... Bd5
{[%clk 0:00:20.6]} 31. Rxh5+ {[%clk 0:00:52.7]} 31... gxh5 {[%clk 0:00:07.8]}
32. Bxf5+ {[%clk 0:00:52.5]} 32... Rg6 {[%clk 0:00:07.4]} 33. Qxh5+ {[%clk
0:00:52]} 33... Kg7 {[%clk 0:00:06.5]} 34. Rxg6+ {[%clk 0:00:48.9]} 34... Qxg6
{[%clk 0:00:02.5]} 35. Qxg6+ {[%clk 0:00:49.8]} 35... Kf8 {[%clk 0:00:04]} 36.
Qf6+ {[%clk 0:00:48]} 36... Ke8 {[%clk 0:00:03.9]} 37. Kg2 {[%clk 0:00:46.7]}
37... Bxf3+ {[%clk 0:00:04.4]} 38. Kxf3 {[%clk 0:00:48.6]} 38... Rxd4 {[%clk
0:00:05.9]} 39. Qxb6 {[%clk 0:00:49.2]} 39... Kf7 {[%clk 0:00:03.6]} 40. Qf6+
{[%clk 0:00:49.4]} 40... Kg8 {[%clk 0:00:04.3]} 41. e6 {[%clk 0:00:46.9]} 41...
Rd6 {[%clk 0:00:04.5]} 42. Qf7+ {[%clk 0:00:48.1]} 42... Kh8 {[%clk 0:00:05.2]}
43. Qh7# {[%clk 0:00:50]} 1-0

[Event "*** Titled Tuesday Blitz"]
[Site "Chess.com"]
[Date "2019.12.03"]
[Round "2"]
[White "visa"]
[Black "sergeikim"]
[Result "0-1"]
[WhiteElo "2253"]
[BlackElo "2491"]
[TimeControl "180+2"]
[EndTime "13:21:31 PST"]
[Termination "sergeikim won by checkmate"]

1. e4 {[%clk 0:03:01.9]} 1... e5 {[%clk 0:03:00.5]} 2. d4 {[%clk 0:03:01.2]}
2... exd4 {[%clk 0:03:00.9]} 3. Qxd4 {[%clk 0:03:01.2]} 3... Nc6 {[%clk
0:03:01.7]} 4. Qe3 {[%clk 0:03:01.3]} 4... Nf6 {[%clk 0:03:02.5]} 5. Bd2 {[%clk
0:03:01.2]} 5... d6 {[%clk 0:03:01.2]} 6. Nc3 {[%clk 0:03:01.6]} 6... Be7 {[%clk
0:03:02.2]} 7. O-O-O {[%clk 0:03:01.8]} 7... O-O {[%clk 0:03:03.7]} 8. Qg3
{[%clk 0:03:01.5]} 8... Re8 {[%clk 0:03:02.1]} 9. h4 {[%clk 0:03:00.9]} 9... Bf8
{[%clk 0:03:02.8]} 10. f3 {[%clk 0:02:57.6]} 10... Kh8 {[%clk 0:03:01.1]} 11. h5
{[%clk 0:02:58.1]} 11... h6 {[%clk 0:03:02.3]} 12. Nge2 {[%clk 0:02:57]} 12...
Ne5 {[%clk 0:02:58.5]} 13. Nf4 {[%clk 0:02:56.4]} 13... c6 {[%clk 0:02:57.5]}
14. Qf2 {[%clk 0:02:04.8]} 14... b5 {[%clk 0:02:53]} 15. g4 {[%clk 0:02:04.8]}
15... Nh7 {[%clk 0:02:53.8]} 16. Be2 {[%clk 0:01:36.1]} 16... Qb6 {[%clk
0:02:43.9]} 17. Be3 {[%clk 0:01:28.7]} 17... Qa5 {[%clk 0:02:43.9]} 18. Rdg1
{[%clk 0:01:12.5]} 18... b4 {[%clk 0:02:43.2]} 19. Nb1 {[%clk 0:01:12.4]} 19...
Qxa2 {[%clk 0:02:42.4]} 20. Bd4 {[%clk 0:00:58.3]} 20... Ng5 {[%clk 0:02:18.6]}
21. Nd3 {[%clk 0:00:44.8]} 21... Nxd3+ {[%clk 0:02:18]} 22. Bxd3 {[%clk
0:00:43.8]} 22... c5 {[%clk 0:02:14.4]} 23. Be3 {[%clk 0:00:38.8]} 23... c4
{[%clk 0:02:11.7]} 24. Bxg5 {[%clk 0:00:33.2]} 24... cxd3 {[%clk 0:02:09.3]} 25.
Qd4 {[%clk 0:00:32.2]} 25... dxc2 {[%clk 0:02:02.8]} 26. Kxc2 {[%clk 0:00:26.1]}
26... Kh7 {[%clk 0:01:45.2]} 27. Bf4 {[%clk 0:00:15.5]} 27... Be6 {[%clk
0:01:44.1]} 28. Qxb4 {[%clk 0:00:13.4]} 28... Rab8 {[%clk 0:01:40.4]} 29. Qa3
{[%clk 0:00:11.7]} 29... Rec8+ {[%clk 0:01:40.2]} 30. Nc3 {[%clk 0:00:12]} 30...
Qc4 {[%clk 0:01:33.9]} 31. Rd1 {[%clk 0:00:10.7]} 31... Rb3 {[%clk 0:01:19.9]}
32. Qa5 {[%clk 0:00:11.2]} 32... Rb5 {[%clk 0:01:00.9]} 33. Qxa7 {[%clk
0:00:09.3]} 33... Rxb2+ {[%clk 0:00:35.3]} 34. Kxb2 {[%clk 0:00:09.4]} 34...
Qxc3+ {[%clk 0:00:36.8]} 35. Kb1 {[%clk 0:00:07.1]} 35... Qb3+ {[%clk
0:00:36.9]} 36. Ka1 {[%clk 0:00:07.9]} 36... Rc2 {[%clk 0:00:33.5]} 37. Rb1
{[%clk 0:00:02.3]} 37... Ra2+ {[%clk 0:00:32.8]} 38. Qxa2 {[%clk 0:00:03.2]}
38... Qxa2# {[%clk 0:00:33.6]} 0-1

[Event "*** Titled Tuesday Blitz"]
[Site "Chess.com"]
[Date "2019.12.03"]
[Round "2"]
[White "x-3738459472"]
[Black "1977Ivan"]
[Result "0-1"]
[WhiteElo "2548"]
[BlackElo "2786"]
[TimeControl "180+2"]
[EndTime "13:21:32 PST"]
[Termination "1977Ivan won by resignation"]

1. e4 {[%clk 0:03:01.9]} 1... c6 {[%clk 0:03:00.2]} 2. Nf3 {[%clk 0:03:02.1]}
2... d5 {[%clk 0:03:00.4]} 3. Nc3 {[%clk 0:03:04]} 3... dxe4 {[%clk 0:03:00.6]}
4. Nxe4 {[%clk 0:03:04.9]} 4... Nf6 {[%clk 0:03:02]} 5. Qe2 {[%clk 0:03:06]}
5... Na6 {[%clk 0:02:57.2]} 6. Nxf6+ {[%clk 0:02:49]} 6... gxf6 {[%clk
0:02:57.1]} 7. b3 {[%clk 0:02:50.2]} 7... Nb4 {[%clk 0:02:37.3]} 8. d3 {[%clk
0:02:50.3]} 8... Qa5 {[%clk 0:02:36.9]} 9. Kd1 {[%clk 0:02:49.4]} 9... Nd5
{[%clk 0:02:33.2]} 10. Bd2 {[%clk 0:02:33.9]} 10... Nc3+ {[%clk 0:02:33.6]} 11.
Bxc3 {[%clk 0:02:35]} 11... Qxc3 {[%clk 0:02:34.3]} 12. Rb1 {[%clk 0:02:36.6]}
12... h5 {[%clk 0:02:25.5]} 13. Nd2 {[%clk 0:02:33.1]} 13... Bg4 {[%clk
0:02:23.6]} 14. f3 {[%clk 0:02:33.8]} 14... Bf5 {[%clk 0:02:21.2]} 15. Nc4
{[%clk 0:02:21.3]} 15... O-O-O {[%clk 0:02:17.3]} 16. Qe3 {[%clk 0:02:17.5]}
16... Bh6 {[%clk 0:01:53.8]} 17. Qxa7 {[%clk 0:02:04.7]} 17... Bxd3 {[%clk
0:01:48]} 18. cxd3 {[%clk 0:01:45.3]} 18... Rxd3+ {[%clk 0:01:47.5]} 19. Bxd3
{[%clk 0:01:41.2]} 19... Qxd3+ {[%clk 0:01:48]} 20. Ke1 {[%clk 0:01:42.8]} 20...
Qxb1+ {[%clk 0:01:45.2]} 21. Kf2 {[%clk 0:01:42.8]} 21... Qc2+ {[%clk
0:01:42.7]} 22. Kf1 {[%clk 0:01:41.2]} 22... Rd8 {[%clk 0:01:11.5]} 23. Qa8+
{[%clk 0:01:35.8]} 23... Kc7 {[%clk 0:01:12.5]} 24. Qa5+ {[%clk 0:01:36.3]}
24... Kd7 {[%clk 0:01:13.5]} 25. Qc5 {[%clk 0:00:47.8]} 25... Qd1+ {[%clk
0:00:55.7]} 26. Kf2 {[%clk 0:00:48.9]} 26... Qxh1 {[%clk 0:00:56.8]} 27. Qxh5
{[%clk 0:00:48.9]} 27... Bg5 {[%clk 0:00:55.3]} 28. f4 {[%clk 0:00:47.9]} 28...
Bxf4 {[%clk 0:00:40.2]} 29. Qf5+ {[%clk 0:00:45.7]} 29... Ke8 {[%clk 0:00:41.3]}
30. Qxf4 {[%clk 0:00:46.2]} 30... Qb1 {[%clk 0:00:41.8]} 31. h3 {[%clk
0:00:41.1]} 31... Qxa2+ {[%clk 0:00:42.7]} 32. Kg1 {[%clk 0:00:42.4]} 32... Qxb3
{[%clk 0:00:44]} 33. Ne3 {[%clk 0:00:40.1]} 33... Qc3 {[%clk 0:00:43.6]} 34. Nf5
{[%clk 0:00:39.1]} 34... Qa1+ {[%clk 0:00:43]} 35. Kf2 {[%clk 0:00:35.2]} 35...
Qb2+ {[%clk 0:00:43.2]} 36. Kf3 {[%clk 0:00:32.1]} 36... Qc3+ {[%clk 0:00:43.7]}
37. Kg4 {[%clk 0:00:32.8]} 37... e6 {[%clk 0:00:34.7]} 38. Ng7+ {[%clk
0:00:30.7]} 38... Kf8 {[%clk 0:00:33.1]} 39. Qh6 {[%clk 0:00:28.5]} 39... Rd4+
{[%clk 0:00:30.4]} 40. Kh5 {[%clk 0:00:29.8]} 40... Ke7 {[%clk 0:00:31.1]} 41.
g4 {[%clk 0:00:26]} 41... Rd5+ {[%clk 0:00:27.9]} 42. Nf5+ {[%clk 0:00:25.7]}
42... Rxf5+ {[%clk 0:00:28.3]} 0-1

[Event "*** Titled Tuesday Blitz"]
[Site "Chess.com"]
[Date "2019.12.03"]
[Round "2"]
[White "black_pawn_16"]
[Black "Philosopherrr"]
[Result "0-1"]
[WhiteElo "2152"]
[BlackElo "2442"]
[TimeControl "180+2"]
[EndTime "13:21:34 PST"]
[Termination "Philosopherrr won by resignation"]

1. e4 {[%clk 0:02:52.9]} 1... e5 {[%clk 0:02:43.4]} 2. Nf3 {[%clk 0:02:51.9]}
2... Nc6 {[%clk 0:02:43.5]} 3. Bb5 {[%clk 0:02:52.7]} 3... a6 {[%clk 0:02:44.5]}
4. Bxc6 {[%clk 0:02:53.5]} 4... dxc6 {[%clk 0:02:44.6]} 5. O-O {[%clk 0:02:55]}
5... Qf6 {[%clk 0:02:45.9]} 6. d3 {[%clk 0:02:53.9]} 6... Bd6 {[%clk 0:02:42.6]}
7. Nbd2 {[%clk 0:02:48.9]} 7... Ne7 {[%clk 0:02:42.4]} 8. b3 {[%clk 0:02:49.7]}
8... Bg4 {[%clk 0:02:34]} 9. h3 {[%clk 0:02:50.1]} 9... h5 {[%clk 0:02:34.9]}
10. Nc4 {[%clk 0:02:47.8]} 10... Bxf3 {[%clk 0:02:25.2]} 11. Qxf3 {[%clk
0:02:49.7]} 11... Qxf3 {[%clk 0:02:26.5]} 12. gxf3 {[%clk 0:02:51.6]} 12... Ng6
{[%clk 0:02:27.7]} 13. Kg2 {[%clk 0:02:45.5]} 13... f6 {[%clk 0:02:26.2]} 14.
Rg1 {[%clk 0:02:29.5]} 14... Nh4+ {[%clk 0:02:26.4]} 15. Kf1 {[%clk 0:02:24.6]}
15... g5 {[%clk 0:02:26.9]} 16. Ke2 {[%clk 0:02:24.7]} 16... O-O-O {[%clk
0:02:15.5]} 17. Be3 {[%clk 0:02:16.4]} 17... Bb4 {[%clk 0:02:16.2]} 18. Rab1
{[%clk 0:01:57.2]} 18... b5 {[%clk 0:02:16.1]} 19. Nb2 {[%clk 0:01:57.6]} 19...
Bc3 {[%clk 0:02:04.8]} 20. Nd1 {[%clk 0:01:57.7]} 20... Bd4 {[%clk 0:02:05.7]}
21. c3 {[%clk 0:01:50.1]} 21... Bb6 {[%clk 0:02:04.7]} 22. Nb2 {[%clk
0:01:32.6]} 22... Rd7 {[%clk 0:01:54.5]} 23. a4 {[%clk 0:01:31.5]} 23... Kb7
{[%clk 0:01:54.5]} 24. Ra1 {[%clk 0:01:29.6]} 24... Rhd8 {[%clk 0:01:48.9]} 25.
Rgd1 {[%clk 0:01:27.8]} 25... Ng6 {[%clk 0:01:48.8]} 26. Ra2 {[%clk 0:01:16.9]}
26... h4 {[%clk 0:01:43.5]} 27. Raa1 {[%clk 0:01:14.5]} 27... Nf8 {[%clk
0:01:44.5]} 28. Rd2 {[%clk 0:00:53]} 28... Ne6 {[%clk 0:01:41.2]} 29. Nd1 {[%clk
0:00:37.1]} 29... b4 {[%clk 0:01:33]} 30. c4 {[%clk 0:00:29.8]} 30... Bd4 {[%clk
0:01:29.9]} 31. Raa2 {[%clk 0:00:26.5]} 31... a5 {[%clk 0:01:29.2]} 32. Rac2
{[%clk 0:00:13.9]} 32... Nc5 {[%clk 0:01:24.1]} 33. Bxd4 {[%clk 0:00:13.8]}
33... Rxd4 {[%clk 0:01:23.7]} 34. Ne3 {[%clk 0:00:12.7]} 34... Nxb3 {[%clk
0:01:17.8]} 35. Rd1 {[%clk 0:00:13.7]} 35... Nc5 {[%clk 0:01:18.6]} 36. Rcd2
{[%clk 0:00:11.4]} 36... Ne6 {[%clk 0:01:20]} 37. Nf5 {[%clk 0:00:11.4]} 37...
Nf4+ {[%clk 0:01:21.4]} 38. Ke3 {[%clk 0:00:12.6]} 38... R4d7 {[%clk 0:01:20.4]}
39. c5 {[%clk 0:00:14.1]} 39... Nxh3 {[%clk 0:01:19.6]} 40. Nh6 {[%clk
0:00:15.1]} 40... Nf4 {[%clk 0:01:18.8]} 41. Ng4 {[%clk 0:00:16.5]} 41... h3
{[%clk 0:01:13.4]} 42. Nxf6 {[%clk 0:00:16.4]} 42... Rxd3+ {[%clk 0:01:14.6]}
43. Rxd3 {[%clk 0:00:14.3]} 43... Rxd3+ {[%clk 0:01:15.5]} 44. Rxd3 {[%clk
0:00:15.6]} 44... Nxd3 {[%clk 0:01:15.8]} 45. Ng4 {[%clk 0:00:14.8]} 45... Nxc5
{[%clk 0:01:15.6]} 46. f4 {[%clk 0:00:14.8]} 46... exf4+ {[%clk 0:01:14.6]} 47.
Kd4 {[%clk 0:00:15.8]} 47... b3 {[%clk 0:01:13.3]} 0-1

[Event "*** Titled Tuesday Blitz"]
[Site "Chess.com"]
[Date "2019.12.03"]
[Round "2"]
[White "kleopl"]
[Black "FrogMist"]
[Result "1-0"]
[WhiteElo "2506"]
[BlackElo "2283"]
[TimeControl "180+2"]
[EndTime "13:21:44 PST"]
[Termination "kleopl won by resignation"]

1. c4 {[%clk 0:03:01.9]} 1... Nf6 {[%clk 0:03:00.5]} 2. Nc3 {[%clk 0:03:02.4]}
2... g6 {[%clk 0:02:58.1]} 3. g3 {[%clk 0:03:03.4]} 3... Bg7 {[%clk 0:02:59.2]}
4. Bg2 {[%clk 0:03:04.7]} 4... O-O {[%clk 0:03:00.9]} 5. d3 {[%clk 0:03:06]}
5... e5 {[%clk 0:03:00.7]} 6. e4 {[%clk 0:03:06.6]} 6... d6 {[%clk 0:03:00.2]}
7. Nge2 {[%clk 0:03:07.7]} 7... Nc6 {[%clk 0:02:56.1]} 8. O-O {[%clk 0:03:08.2]}
8... Bg4 {[%clk 0:02:57.1]} 9. f3 {[%clk 0:03:08.6]} 9... Be6 {[%clk 0:02:53.7]}
10. Be3 {[%clk 0:03:09.2]} 10... Nd7 {[%clk 0:02:54.4]} 11. f4 {[%clk
0:03:08.2]} 11... Nc5 {[%clk 0:02:54.9]} 12. f5 {[%clk 0:03:03.4]} 12... Bd7
{[%clk 0:02:50.1]} 13. Nd5 {[%clk 0:03:00.7]} 13... f6 {[%clk 0:02:38.4]} 14. b4
{[%clk 0:02:49.8]} 14... Nxb4 {[%clk 0:01:48.6]} 15. Nxb4 {[%clk 0:02:50.4]}
15... a5 {[%clk 0:01:50.3]} 16. Nd5 {[%clk 0:02:42.7]} 16... c6 {[%clk
0:01:50.4]} 17. Ndc3 {[%clk 0:02:43.8]} 17... b5 {[%clk 0:01:49.3]} 18. cxb5
{[%clk 0:02:41.9]} 18... cxb5 {[%clk 0:01:48.8]} 19. d4 {[%clk 0:02:36.1]} 19...
Na6 {[%clk 0:01:45.8]} 20. Nd5 {[%clk 0:02:30.5]} 20... b4 {[%clk 0:01:43.1]}
21. g4 {[%clk 0:02:24]} 21... Bb5 {[%clk 0:01:44]} 22. Rf2 {[%clk 0:02:14.6]}
22... Rc8 {[%clk 0:01:44]} 23. Ng3 {[%clk 0:02:01.6]} 23... Nc7 {[%clk
0:01:35.3]} 24. Nxc7 {[%clk 0:01:53.8]} 24... Qxc7 {[%clk 0:01:33.8]} 25. Bf1
{[%clk 0:01:51.5]} 25... Bxf1 {[%clk 0:01:30.3]} 26. Qxf1 {[%clk 0:01:52.1]}
26... Qc3 {[%clk 0:01:27.9]} 27. Bd2 {[%clk 0:01:20.6]} 27... Qxd4 {[%clk
0:01:25.2]} 28. Rd1 {[%clk 0:01:07.5]} 28... Qb6 {[%clk 0:01:05.5]} 29. Qd3
{[%clk 0:01:00.3]} 29... Rf7 {[%clk 0:01:00.6]} 30. Be3 {[%clk 0:00:59.9]} 30...
Qb7 {[%clk 0:00:54.6]} 31. Qxd6 {[%clk 0:00:59.2]} 31... Bf8 {[%clk 0:00:51.9]}
32. Qd5 {[%clk 0:00:59.6]} 32... Qa6 {[%clk 0:00:49.2]} 33. fxg6 {[%clk
0:00:59.7]} 33... hxg6 {[%clk 0:00:51.1]} 34. g5 {[%clk 0:00:52.7]} 34... Kg7
{[%clk 0:00:34.8]} 35. gxf6+ {[%clk 0:00:48.6]} 35... Rxf6 {[%clk 0:00:35.4]}
36. Rxf6 {[%clk 0:00:49.7]} 36... Kxf6 {[%clk 0:00:32.3]} 37. Rf1+ {[%clk
0:00:45.9]} 37... Kg7 {[%clk 0:00:33]} 38. Qf7+ {[%clk 0:00:42.1]} 38... Kh8
{[%clk 0:00:34.3]} 39. Bg5 {[%clk 0:00:37.7]} 39... Bg7 {[%clk 0:00:32.3]} 40.
Bf6 {[%clk 0:00:34.2]} 40... Qb6+ {[%clk 0:00:31.5]} 41. Kg2 {[%clk 0:00:32]}
41... Rg8 {[%clk 0:00:25.9]} 42. Qxg6 {[%clk 0:00:25.6]} 1-0

[Event "*** Titled Tuesday Blitz"]
[Site "Chess.com"]
[Date "2019.12.03"]
[Round "2"]
[White "Oleksandr_Bortnyk"]
[Black "Witik"]
[Result "1-0"]
[WhiteElo "2928"]
[BlackElo "2605"]
[TimeControl "180+2"]
[EndTime "13:21:45 PST"]
[Termination "Oleksandr_Bortnyk won by resignation"]

1. e4 {[%clk 0:03:01.9]} 1... c6 {[%clk 0:03:00.3]} 2. c4 {[%clk 0:02:57.3]}
2... e5 {[%clk 0:03:01]} 3. Nf3 {[%clk 0:02:54]} 3... d6 {[%clk 0:03:01.8]} 4.
d4 {[%clk 0:02:43.5]} 4... Nd7 {[%clk 0:03:01.2]} 5. Nc3 {[%clk 0:02:32]} 5...
Ngf6 {[%clk 0:03:01.7]} 6. h3 {[%clk 0:02:20.8]} 6... Be7 {[%clk 0:02:51.9]} 7.
Be3 {[%clk 0:01:58.1]} 7... exd4 {[%clk 0:02:42.9]} 8. Qxd4 {[%clk 0:01:34.2]}
8... O-O {[%clk 0:02:41.7]} 9. O-O-O {[%clk 0:01:35.2]} 9... Qa5 {[%clk
0:02:23.4]} 10. Bf4 {[%clk 0:01:30.6]} 10... Nc5 {[%clk 0:02:16.9]} 11. Qe3
{[%clk 0:00:46.5]} 11... Re8 {[%clk 0:02:08.1]} 12. Bd3 {[%clk 0:00:39.4]} 12...
a6 {[%clk 0:01:45]} 13. Bc2 {[%clk 0:00:38.1]} 13... b5 {[%clk 0:01:45.7]} 14.
Bxd6 {[%clk 0:00:37.2]} 14... Bxd6 {[%clk 0:01:46.8]} 15. Rxd6 {[%clk
0:00:38.4]} 15... b4 {[%clk 0:01:48.2]} 16. Rxc6 {[%clk 0:00:38.1]} 16... bxc3
{[%clk 0:01:39]} 17. Rxc5 {[%clk 0:00:39]} 17... Qxa2 {[%clk 0:01:37.1]} 18.
Qxc3 {[%clk 0:00:30.9]} 18... Qa1+ {[%clk 0:01:34.4]} 19. Bb1 {[%clk 0:00:32.1]}
19... Nxe4 {[%clk 0:01:32.2]} 20. Re5 {[%clk 0:00:18.7]} 20... Bf5 {[%clk
0:01:18.6]} 21. Qa5 {[%clk 0:00:08.9]} 21... Qxa5 {[%clk 0:00:43.8]} 22. Rxa5
{[%clk 0:00:10.8]} 22... Nxf2 {[%clk 0:00:45.7]} 23. Rf1 {[%clk 0:00:12.5]}
23... Bxb1 {[%clk 0:00:20.2]} 24. Rxf2 {[%clk 0:00:13.9]} 24... Bd3 {[%clk
0:00:19.5]} 25. Ne5 {[%clk 0:00:15.1]} 25... Bg6 {[%clk 0:00:16.3]} 26. Nxg6
{[%clk 0:00:16.4]} 26... hxg6 {[%clk 0:00:17.4]} 27. b3 {[%clk 0:00:17.5]} 27...
Re3 {[%clk 0:00:17.2]} 28. Kc2 {[%clk 0:00:18.5]} 28... Rb8 {[%clk 0:00:16.4]}
29. Rf3 {[%clk 0:00:18.5]} 29... Rbxb3 {[%clk 0:00:14.1]} 30. Rxe3 {[%clk
0:00:16.9]} 30... Rxe3 {[%clk 0:00:16]} 31. Rxa6 {[%clk 0:00:18.4]} 31... Rg3
{[%clk 0:00:12.7]} 32. c5 {[%clk 0:00:18.1]} 32... Rxg2+ {[%clk 0:00:13.8]} 33.
Kd3 {[%clk 0:00:19.1]} 33... Rg3+ {[%clk 0:00:13.7]} 34. Kd4 {[%clk 0:00:20.6]}
34... Rg1 {[%clk 0:00:13.4]} 35. c6 {[%clk 0:00:21.4]} 35... Rc1 {[%clk
0:00:13.6]} 36. Kd5 {[%clk 0:00:22.8]} 36... f5 {[%clk 0:00:10.6]} 37. Kd6
{[%clk 0:00:19.7]} 37... Kf7 {[%clk 0:00:08.6]} 38. c7 {[%clk 0:00:19.9]} 38...
Rd1+ {[%clk 0:00:06.8]} 39. Kc6 {[%clk 0:00:20.6]} 39... Rc1+ {[%clk 0:00:07.8]}
40. Kd7 {[%clk 0:00:22.1]} 1-0

[Event "*** Titled Tuesday Blitz"]
[Site "Chess.com"]
[Date "2019.12.03"]
[Round "2"]
[White "Misi_95"]
[Black "Sergey85Rodchenkov"]
[Result "0-1"]
[WhiteElo "2689"]
[BlackElo "2425"]
[TimeControl "180+2"]
[EndTime "13:21:46 PST"]
[Termination "Sergey85Rodchenkov won by checkmate"]

1. e4 {[%clk 0:03:01.9]} 1... c5 {[%clk 0:03:00.5]} 2. Nf3 {[%clk 0:03:02.6]}
2... e6 {[%clk 0:03:02]} 3. d4 {[%clk 0:03:02.7]} 3... cxd4 {[%clk 0:03:03.5]}
4. Nxd4 {[%clk 0:03:04.4]} 4... a6 {[%clk 0:03:05.2]} 5. Bd3 {[%clk 0:03:04.5]}
5... Bc5 {[%clk 0:03:04.6]} 6. Nb3 {[%clk 0:03:05.6]} 6... Ba7 {[%clk
0:03:05.5]} 7. Qe2 {[%clk 0:03:04.1]} 7... Nc6 {[%clk 0:03:04.2]} 8. Be3 {[%clk
0:03:04.8]} 8... Nge7 {[%clk 0:03:03.2]} 9. c4 {[%clk 0:03:05.3]} 9... d6 {[%clk
0:03:01.7]} 10. Nc3 {[%clk 0:03:05.9]} 10... e5 {[%clk 0:03:02.7]} 11. O-O
{[%clk 0:03:04.4]} 11... O-O {[%clk 0:03:03.4]} 12. Rad1 {[%clk 0:03:03.4]}
12... Be6 {[%clk 0:03:01.7]} 13. Nd5 {[%clk 0:02:58.1]} 13... a5 {[%clk
0:02:52.4]} 14. a4 {[%clk 0:02:40.3]} 14... Ng6 {[%clk 0:02:33.4]} 15. c5 {[%clk
0:02:35.5]} 15... Bxd5 {[%clk 0:02:19.5]} 16. exd5 {[%clk 0:02:36.1]} 16... Nb4
{[%clk 0:02:11.1]} 17. Bb5 {[%clk 0:02:28.7]} 17... dxc5 {[%clk 0:02:04.8]} 18.
Bxc5 {[%clk 0:02:28.1]} 18... Bxc5 {[%clk 0:01:58.6]} 19. Nxc5 {[%clk 0:02:30]}
19... b6 {[%clk 0:01:51.1]} 20. Ne4 {[%clk 0:02:25.2]} 20... f5 {[%clk
0:01:48.5]} 21. Nc3 {[%clk 0:02:24.6]} 21... Qd6 {[%clk 0:01:42.1]} 22. Bc4
{[%clk 0:02:20.9]} 22... Nf4 {[%clk 0:01:24.7]} 23. Qe3 {[%clk 0:02:21.5]} 23...
Nc2 {[%clk 0:01:19.5]} 24. Qg3 {[%clk 0:02:05.8]} 24... Nd4 {[%clk 0:01:20.2]}
25. Rfe1 {[%clk 0:01:49.5]} 25... Rac8 {[%clk 0:01:13.4]} 26. b3 {[%clk
0:01:47.9]} 26... Kh8 {[%clk 0:01:12.1]} 27. h3 {[%clk 0:01:07.1]} 27... Rce8
{[%clk 0:01:10.8]} 28. Qe3 {[%clk 0:01:01.6]} 28... Qg6 {[%clk 0:01:05.7]} 29.
Qg3 {[%clk 0:01:02.3]} 29... Qd6 {[%clk 0:01:04]} 30. Re3 {[%clk 0:00:59.8]}
30... h6 {[%clk 0:00:54.7]} 31. Rf3 {[%clk 0:00:47.9]} 31... g5 {[%clk
0:00:54.6]} 32. Re3 {[%clk 0:00:47.7]} 32... Ng6 {[%clk 0:00:51.6]} 33. Nb5
{[%clk 0:00:47.4]} 33... Nxb5 {[%clk 0:00:51.9]} 34. Bxb5 {[%clk 0:00:48.5]}
34... f4 {[%clk 0:00:52.9]} 35. Qg4 {[%clk 0:00:49.3]} 35... fxe3 {[%clk
0:00:53.3]} 36. Bxe8 {[%clk 0:00:50.5]} 36... exf2+ {[%clk 0:00:53.1]} 37. Kf1
{[%clk 0:00:50.6]} 37... Rxe8 {[%clk 0:00:53.1]} 38. Kxf2 {[%clk 0:00:51.3]}
38... Qc5+ {[%clk 0:00:52.9]} 39. Kg3 {[%clk 0:00:52.6]} 39... Qd6 {[%clk
0:00:45.5]} 40. Kh2 {[%clk 0:00:45.2]} 40... e4+ {[%clk 0:00:46.3]} 41. Kh1
{[%clk 0:00:45.7]} 41... e3 {[%clk 0:00:47.6]} 42. Qd4+ {[%clk 0:00:46.1]} 42...
Kh7 {[%clk 0:00:45.1]} 43. Rf1 {[%clk 0:00:46.5]} 43... Nf4 {[%clk 0:00:42.2]}
44. Re1 {[%clk 0:00:43.9]} 44... e2 {[%clk 0:00:41.4]} 45. Qc3 {[%clk
0:00:37.9]} 45... Re7 {[%clk 0:00:33.5]} 46. Qc2+ {[%clk 0:00:38.5]} 46... Kg7
{[%clk 0:00:32.7]} 47. Qc3+ {[%clk 0:00:39.5]} 47... Qe5 {[%clk 0:00:30.6]} 48.
Qc6 {[%clk 0:00:39.1]} 48... Qxd5 {[%clk 0:00:29.5]} 49. Qxb6 {[%clk 0:00:39.3]}
49... Qxg2# {[%clk 0:00:29]} 0-1